Cogmind - Beta 17.1 @@@ ROGUE MODE // 2026.09.17 @ 16:28:14 Player: Lazz Result: Destroyed by Y-54 Guardian with Flak Gun Performance ------------- Evolutions (3) 1500 Regions Visited (7) 1400 Robots Destroyed (34) 170 Value Destroyed (1122) 1122 Prototype IDs (0) 0 Alien Tech Used (0) 0 Bonus (287) 287 TOTAL SCORE: 4479 Bonus ------- Follower Combat Kills 87 Entered Garrisons 200 Cogmind --------- Core Integrity 0/700 Matter 300/300 Energy 88/100 System Corruption 3% Temperature Cool (32) Movement Core (700) Ox13 Location -7/Garrison Parts ------- > --- POWER (1) -------- (None) > --- PROPULSION (2) --- (None) > --- UTILITY (4) ------ High-capacity Storage Unit > --- WEAPON (6) ------- (None) > --- INVENTORY (20) --- Light Treads Improved Treads Improved Treads Armored Treads Advanced Treads Improved Terrain Scan Processor Hacking Suite Plasma Cutter Peak State ------------ > --- POWER ------------ Improved Ion Engine > --- PROPULSION ------- Armored Treads Armored Treads > --- UTILITY ---------- High-capacity Storage Unit Large Battery Weapon Cycler Weapon Cycler > --- WEAPON ----------- Small Laser Particle Gun Particle Gun Heavy Particle Cannon Flak Cannon > --- INVENTORY -------- Light Nuclear Core Light Treads Improved Treads Improved Treads Armored Treads Advanced Treads Armored Huge Wheel Armored Huge Wheel Improved Terrain Scan Processor Hacking Suite Improved Grenade Launcher Improved Grenade Launcher Plasma Cutter [Rating: 33] Favorites ----------- Power Light Ion Engine Engine Light Ion Engine Power Core Light Nuclear Core Propulsion Improved Treads Treads Improved Treads Wheel Armored Huge Wheel Utility Seismic Detector Device Seismic Detector Storage Small Storage Unit Protection Heavy Armor Plating Weapon Assault Rifle Energy Gun Small Laser Energy Cannon Heavy Particle Cannon Ballistic Gun Assault Rifle Ballistic Cannon Flak Cannon Launcher Improved Grenade Launcher Build | -11 -10 -10 -10 -9 -8 -7 -7 ------- Run | Yrd Mat Min Exi Min Mat Fac Gar Slots Evolved 6 | . . . . . 4 2 . Power . | . . . . . . . . Propulsion . | . . . . . . . . Utility 2 | . . . . . 2 . . Weapon 4 | . . . . . 2 2 . Parts Attached 33 | 7 2 . . . 12 6 6 Power 3 | 1 . . . . 1 . 1 Engine 2 | 1 . . . . 1 . . Core 1 | . . . . . . . 1 Reactor . | . . . . . . . . Propulsion 10 | 2 2 . . . 4 . 2 Treads 8 | 2 2 . . . 4 . . Leg . | . . . . . . . . Wheel 2 | . . . . . . . 2 Hover . | . . . . . . . . Flight . | . . . . . . . . Utility 8 | 2 . . . . 3 3 . Device 4 | 1 . . . . 1 2 . Storage 3 | 1 . . . . 1 1 . Processor . | . . . . . . . . Hackware . | . . . . . . . . Protection 1 | . . . . . 1 . . Artifact . | . . . . . . . . Weapon 12 | 2 . . . . 4 3 3 Energy Gun 4 | . . . . . 1 2 1 Energy Cannon 2 | . . . . . 2 . . Ballistic Gun 2 | 2 . . . . . . . Ballistic Cannon 1 | . . . . . . 1 . Launcher 3 | . . . . . 1 . 2 Special Weapon . | . . . . . . . . Impact Weapon . | . . . . . . . . Slashing Weapon . | . . . . . . . . Piercing Weapon . | . . . . . . . . Special Melee Weapon . | . . . . . . . . Unidentified Prototypes . | . . . . . . . . Parts Lost 23 | . . . . 1 4 1 17 Power 3 | . . . . . 1 . 2 Propulsion 4 | . . . . . . . 4 Utility 5 | . . . . . 2 . 3 Weapon 11 | . . . . 1 1 1 8 Highest Loss Streak 13 | . . . . 1 3 1 13 To Critical Strikes . | . . . . . . . . Average Backups 7 | . 3 6 6 7 9 11 11 Power . | . . . . . . . . Propulsion 2 | . 1 2 2 2 3 5 6 Utility 1 | . . 2 2 3 2 2 2 Weapon 1 | . 1 1 1 1 2 2 1 Tool/Special . | . . . . . . . . Unused Backups 6 | . . . . . . . 6 Power . | . . . . . . . . Propulsion 3 | . . . . . . . 3 Utility 2 | . . . . . . . 2 Weapon . | . . . . . . . . Tool/Special 1 | . . . . . . . 1 Average Slot Usage (%) 91 | . 100 100 100 100 78 76 80 Engine 11 | . 14 14 14 14 8 7 5 Treads 23 | . 28 28 28 28 17 15 12 Device 11 | . 14 14 14 14 5 3 12 Storage 12 | . 14 14 14 14 9 12 13 Protection 1 | . . . . . 5 4 . Energy Gun 5 | . . . . . 7 16 19 Energy Cannon 4 | . . . . . 16 9 5 Ballistic Gun 18 | . 28 28 28 28 6 . . Ballistic Cannon 1 | . . . . . . 6 5 Peak Build Rating 33 | 7 10 10 10 10 27 31 33 Average Rating 15 | 5 9 10 10 10 20 27 29 On Entrance 12 | . 7 10 10 10 9 24 31 Avg Prop Armor Cover (%) . | . . . . . . . . Naked Turns . | . . . . . . . . Heaviest Build 84 | 13 13 13 13 13 81 84 71 Greatest Support 46 | 40 46 46 46 46 46 40 40 Greatest Overweight (x) 3 | . . . . . 3 2 1 Average Overweight (x) . | . . . . . . 1 1 Largest Inventory Capacity 20 | 8 8 8 8 8 20 20 20 Average Capacity 12 | 7 8 8 8 8 18 20 20 Most Carried 15 | 1 6 6 7 7 12 12 15 Average Carried 7 | . 4 6 6 7 9 11 13 Final Capacity 20 | 8 8 8 8 8 20 20 20 Final Carried 12 | 1 6 6 7 7 12 11 8 Class Distribution -------------------- 67% | Mutant 14% | Executioner 13% | Tank 5% | Gunner Dominant Class ---------------- Mutant | -10/Materials Mutant | -10/Mines Mutant | -10/Exiles Mutant | -9/Mines Tank | -8/Materials Executioner | -7/Factory Executioner | -7/Garrison Resources | -11 -10 -10 -10 -9 -8 -7 -7 ----------- Run | Yrd Mat Min Exi Min Mat Fac Gar Matter Collected 960 | 354 20 162 . . 175 78 171 Remotely . | . . . . . . . . Salvage Created 1199 | 181 . 164 . . 358 78 418 Parts 56 | 7 . 13 . . 27 3 6 Haulers Intercepted 2 | . . . . . 2 . . Recyclers Shooed 3 | 1 . . . . 2 . . Parts Field Recycled . | . . . . . . . . Retrieved Matter . | . . . . . . . . Parts Self-Destructed . | . . . . . . . . Prevented . | . . . . . . . . Parts Restored . | . . . . . . . . Kills | -11 -10 -10 -10 -9 -8 -7 -7 ------- Run | Yrd Mat Min Exi Min Mat Fac Gar Combat Hostiles Destroyed 24 | . . 8 . . 8 2 6 Guns 11 | . . 8 . . 1 . 2 Cannons 7 | . . . . . 4 2 1 AOE 6 | . . . . . 3 . 3 Classes Destroyed 11 | 3 . 2 . . 6 . . Worker 3 | 2 . . . . 1 . . Builder 1 | . . . . . 1 . . Tunneler 2 | 2 . . . . . . . Hauler 2 | . . . . . 2 . . Recycler 1 | 1 . . . . . . . Watcher 1 | . . . . . 1 . . Swarmer 8 | . . 6 . . . . 2 Grunt 12 | . . 2 . . 5 2 3 Brawler 1 | . . . . . 1 . . Sentry 2 | . . . . . 1 . 1 Hunter 1 | . . . . . 1 . . Best Kill Streak 6 | 4 . 3 . . 6 2 4 Combat Bots Only 4 | . . 3 . . 3 2 4 Max Kills in Single Turn 3 | 1 . 1 . . 2 1 3 Gunslinging . | . . . . . . . . Exploded 3 | . . . . . 2 . 3 Melee . | . . . . . . . . Uniques/NPCs Destroyed . | . . . . . . . . Combat | -11 -10 -10 -10 -9 -8 -7 -7 -------- Run | Yrd Mat Min Exi Min Mat Fac Gar Hostile Shots Fired 520 | . . 46 . 24 72 15 363 Missed 140 | . . 11 . 7 20 8 94 Hits 380 | . . 35 . 17 52 7 269 Melee 6 | . . . . . 6 . . Projectile 374 | . . 35 . 17 46 7 269 AOE 1 | . . . . . 1 . . Critical Strikes 2 | . . . . . . . 2 Damage Taken 4175 | . . 343 . 149 896 109 2678 Core 870 | . . 63 . 30 76 . 701 Absorbed by Shields . | . . . . . . . . Core Remaining (%) 82 | 100 . . . 62 86 . . Volleys Fired 135 | 14 . 27 . . 31 4 59 Largest 4 | 2 . 2 . . 4 4 4 Hottest 217 | 40 . 40 . . 195 217 207 Shots Fired 217 | 28 . 54 . . 51 12 72 Gun 123 | 28 . 54 . . 17 4 20 Cannon 83 | . . . . . 28 8 47 Launcher 11 | . . . . . 6 . 5 Special . | . . . . . . . . Kinetic 98 | 28 . 54 . . 6 4 6 Thermal 108 | . . . . . 39 8 61 Explosive 11 | . . . . . 6 . 5 Electromagnetic . | . . . . . . . . Robot Hit Streak 32 | 3 . 12 . . 10 9 32 Robot Miss Streak 5 | 5 . 4 . . 2 2 5 Penetration Max . | . . . . . . . . Secondary Targets 3 | . . 3 . . . . . Max Gunslinging Chain 1 | . . 1 . . . . . Shots Hit Robots 138 | 10 . 33 . . 30 7 58 Core Hits 89 | 6 . 12 . . 24 8 39 Critical Kills . | . . . . . . . . Critical Parts Destroyed 1 | 1 . . . . . . . Critical Strikes 2 | 1 . . . . . . 1 Burn 1 | . . . . . . . 1 Destroy 1 | 1 . . . . . . . Melee Attacks . | . . . . . . . . Impact . | . . . . . . . . Slashing . | . . . . . . . . Piercing . | . . . . . . . . Sneak Attacks . | . . . . . . . . Combat Hostiles . | . . . . . . . . Follow-up Attacks . | . . . . . . . . Damage Inflicted 4071 | 129 . 438 . . 1297 158 2049 Guns 941 | 129 . 438 . . 137 25 212 Cannons 1623 | . . . . . 391 133 1099 Explosions 1507 | . . . . . 769 . 738 Melee . | . . . . . . . . Ramming . | . . . . . . . . Kinetic 818 | 129 . 438 . . 44 83 124 Thermal 1746 | . . . . . 484 75 1187 Explosive 1507 | . . . . . 769 . 738 Electromagnetic . | . . . . . . . . Impact . | . . . . . . . . Slashing . | . . . . . . . . Piercing . | . . . . . . . . Highest Corruption 11 | . . . . . 11 . 3 Average Corruption 9 | . . . . . 10 . 2 Corruption Purged . | . . . . . . . . Corruption Blocked . | . . . . . . . . Effects 15 | . . . . . 15 . . Message Errors 3 | . . . . . 3 . . Matter Fused 7 | . . . . . 7 . . Energy Discharges 2 | . . . . . 2 . . Parts Rejected 1 | . . . . . 1 . . Weapon Failures 2 | . . . . . 2 . . Overload Shots . | . . . . . . . . Overflow Damage 52 | . . . . . 15 . 37 Projectiles 5 | . . . . . . . 5 Explosions 47 | . . . . . 15 . 32 Melee . | . . . . . . . . Knockbacks 5 | . . . . . . 5 . Impact . | . . . . . . . . Kinetic 5 | . . . . . . 5 . Secondary . | . . . . . . . . Self-Inflicted Damage 194 | . . . . . . . 194 Shots 5 | . . . . . . . 5 Rammed . | . . . . . . . . Targets Rammed . | . . . . . . . . Kicked . | . . . . . . . . Crushed . | . . . . . . . . Highest Temperature 412 | . . 9 . . 335 328 412 Average Temperature 142 | . . 4 . . 132 124 157 Received Heat Transfer 1098 | . . 75 . . 270 63 690 Effects 5 | . . . . . 1 . 4 Energy Bleed 2 | . . . . . 1 . 1 Interference 3 | . . . . . . . 3 Siege Activations . | . . . . . . . . Martial Activations . | . . . . . . . . Shielding Activations . | . . . . . . . . Robots Disrupted . | . . . . . . . . Combat Hostiles . | . . . . . . . . Robots Corrupted . | . . . . . . . . Combat Hostiles . | . . . . . . . . Parts Fried . | . . . . . . . . Impact Corruptions . | . . . . . . . . Robots Melted . | . . . . . . . . Combat Hostiles . | . . . . . . . . Parts Melted 1 | . . . . . 1 . . Heat Transferred 2976 | . . . . . 817 136 2023 Parts Sabotaged . | . . . . . . . . Parts Stolen . | . . . . . . . . Parts Stripped . | . . . . . . . . Power Chain Reactions . | . . . . . . . . Alert | -11 -10 -10 -10 -9 -8 -7 -7 ------- Run | Yrd Mat Min Exi Min Mat Fac Gar Maximum Alert Level . | . . . . . . . . Low Security (%) 100 | 100 100 100 . 100 100 100 100 Level 1 . | . . . . . . . . Level 2 . | . . . . . . . . Level 3 . | . . . . . . . . Level 4 . | . . . . . . . . Level 5 . | . . . . . . . . High Security . | . . . . . . . . Max Security . | . . . . . . . . Peak Influence 135 | 15 12 70 . . 127 50 135 Initial 42 | . . . . . . 42 9 Average 19 | 1 1 11 . . 42 13 37 Influence Increases 825 | 25 12 190 . . 284 64 250 Destroy 0b10 Robot/C 520 | . . 160 . . 160 40 160 Destroy 0b10 Robot/NC 65 | 25 . . . . 25 . 15 Destroy Leader 76 | . . 30 . . 36 10 . Allied During Kill 2 | . . . . . . . 2 Successful Hack 35 | . 12 . . . 9 14 . Disable Machine 15 | . . . . . 15 . . Anti-Garrison Action 50 | . . . . . . . 50 Destroy Structure 62 | . . . . . 39 . 23 Influence Decreases 776 | 25 12 190 . . 189 145 215 Entered New Map 58 | . . . . . . 53 5 Time Decay 475 | 25 12 190 . . 158 90 . Lost Part 203 | . . . . . 31 2 170 Lost Ally 40 | . . . . . . . 40 Squads Dispatched 3 | . 1 . . . 1 1 . Investigation 1 | . 1 . . . . . . Extermination . | . . . . . . . . Reinforcement 2 | . . . . . 1 1 . Assault . | . . . . . . . . Garrison . | . . . . . . . . Intercept . | . . . . . . . . Searches Triggered . | . . . . . . . . Construction Impeded . | . . . . . . . . Haulers Reinforced . | . . . . . . . . Active Scanning Responses . | . . . . . . . . Cargo Convoy Interrupts . | . . . . . . . . Stealth | -11 -10 -10 -10 -9 -8 -7 -7 --------- Run | Yrd Mat Min Exi Min Mat Fac Gar Distress Signals 2 | . 1 . . . 1 . . Communications Jammed . | . . . . . . . . Distress Signals . | . . . . . . . . Times Spotted 46 | . 5 8 . 4 14 3 12 Peak Tracking Total 9 | . 2 3 . 4 5 2 9 Tactical Retreats . | . . . . . . . . Traps | -11 -10 -10 -10 -9 -8 -7 -7 ------- Run | Yrd Mat Min Exi Min Mat Fac Gar Traps Triggered 1 | . 1 . . . . . . Indirectly . | . . . . . . . . Trap Hack Attempts . | . . . . . . . . Triggered . | . . . . . . . . Disarmed . | . . . . . . . . Reprogrammed . | . . . . . . . . Reused . | . . . . . . . . Traps Extracted . | . . . . . . . . Installed . | . . . . . . . . Triggered . | . . . . . . . . Machines | -11 -10 -10 -10 -9 -8 -7 -7 ---------- Run | Yrd Mat Min Exi Min Mat Fac Gar Machines Disabled 2 | . . . . . 1 . 1 Max in Single Turn 1 | . . . . . 1 . 1 Garrison Relay 1 | . . . . . . . 1 Machines Repaired . | . . . . . . . . Machines Dismantled . | . . . . . . . . Machines Sabotaged . | . . . . . . . . Overloaded Fab Kills . | . . . . . . . . Hacking | -11 -10 -10 -10 -9 -8 -7 -7 --------- Run | Yrd Mat Min Exi Min Mat Fac Gar Machines Accessed 9 | . 2 . 4 . 2 1 . Terminals 4 | . 2 . . . 2 . . Fabricators . | . . . . . . . . Repair Stations . | . . . . . . . . Recycling Units . | . . . . . . . . Scanalyzers . | . . . . . . . . Garrison Access 1 | . . . . . . 1 . Total Hacks 13 | . 4 . 4 . 4 1 . Successful 9 | . 3 . 4 . 1 1 . Failed 4 | . 1 . . . 3 . . Catastrophic 3 | . 1 . . . 2 . . Database Lockouts . | . . . . . . . . Manual 6 | . 4 . . . 2 . . Terminals 8 | . 4 . . . 4 . . Fabricators . | . . . . . . . . Repair Stations . | . . . . . . . . Recycling Units . | . . . . . . . . Scanalyzers . | . . . . . . . . Garrison Access 1 | . . . . . . 1 . Terminal Hacks 8 | . 3 . 4 . 1 . . Record 4 | . . . 4 . . . . Robot Analysis 2 | . 2 . . . . . . Branch Access Points 1 | . 1 . . . . . . Registered Prototypes 1 | . . . . . 1 . . Fabricator Hacks . | . . . . . . . . Repair Station Hacks . | . . . . . . . . Recycling Unit Hacks . | . . . . . . . . Scanalyzer . | . . . . . . . . Garrison Access Hacks 1 | . . . . . . 1 . Unlock Access 1 | . . . . . . 1 . Unauthorized Hacks . | . . . . . . . . Terminals . | . . . . . . . . Fabricators . | . . . . . . . . Repair Stations . | . . . . . . . . Recycling Units . | . . . . . . . . Scanalyzers . | . . . . . . . . Garrison Access . | . . . . . . . . Data Cores Recovered . | . . . . . . . . Used . | . . . . . . . . Hacking Detections 3 | . 2 . . . 1 . . Full Trace Events 2 | . 1 . . . 1 . . Feedback Events . | . . . . . . . . Feedback Blocked . | . . . . . . . . Robot Schematics Acquired . | . . . . . . . . Robots Built . | . . . . . . . . Authchips . | . . . . . . . . Time . | . . . . . . . . Total Robot Build Rating . | . . . . . . . . Part Schematics Acquired . | . . . . . . . . Parts Built . | . . . . . . . . Authchips . | . . . . . . . . Time . | . . . . . . . . Total Part Build Rating . | . . . . . . . . Part Studies Acquired . | . . . . . . . . Parts Repaired . | . . . . . . . . Time . | . . . . . . . . Parts Recycled . | . . . . . . . . Recycled Matter . | . . . . . . . . Retrieved Matter . | . . . . . . . . Retrieved Components . | . . . . . . . . Parts Scanalyzed . | . . . . . . . . Part Schematics Acquired . | . . . . . . . . Parts Damaged . | . . . . . . . . Bothacking | -11 -10 -10 -10 -9 -8 -7 -7 ------------ Run | Yrd Mat Min Exi Min Mat Fac Gar Used RIF Installer . | . . . . . . . . Robots Hacked . | . . . . . . . . Non-combat . | . . . . . . . . Combat . | . . . . . . . . Robot Hacks Applied . | . . . . . . . . Relay Couplers Released 7 | . . . . . . . 7 Machine Destruction 3 | . . . . . . . 3 Programmers 4 | . . . . . . . 4 Fabnet Peak Effective % . | . . . . . . . . Robots Rewired 2 | . . . . . . . 2 Allies Hacked . | . . . . . . . . Hacks Repelled . | . . . . . . . . Allies | -11 -10 -10 -10 -9 -8 -7 -7 -------- Run | Yrd Mat Min Exi Min Mat Fac Gar Total Allies 2 | . . . . . . . 2 Largest Group 1 | . . . . . . . 1 Highest-Rated Group 31 | . . . . . . . 31 Highest-Rated Ally 31 | . . . . . . . 31 Total Orders . | . . . . . . . . Ally Attacks 6 | . . . . . . . 6 Total Damage 132 | . . . . . . . 132 Kills 2 | . . . . . . . 2 Allies Corrupted . | . . . . . . . . Allies Melted . | . . . . . . . . Intel | -11 -10 -10 -10 -9 -8 -7 -7 ------- Run | Yrd Mat Min Exi Min Mat Fac Gar Active Infowar (turns) 2235 | 35 171 976 701 157 195 . . Seismic 2235 | 35 171 976 701 157 195 . . Robot Analysis Total 2 | . 2 . . . . . . Derelict Logs Recovered 3 | . . 2 . 1 . . . Drone Launches . | . . . . . . . . Drone Recoveries . | . . . . . . . . Exploration | -11 -10 -10 -10 -9 -8 -7 -7 ------------- Run | Yrd Mat Min Exi Min Mat Fac Gar Turns Passed 3388 | 167 171 976 701 157 525 330 361 Spaces Moved 1561 | 68 102 533 438 74 163 110 73 Core 7 | 7 . . . . . . . Treads 1539 | 61 102 533 438 74 163 110 58 Legs . | . . . . . . . . Wheels 15 | . . . . . . . 15 Hover . | . . . . . . . . Flight . | . . . . . . . . Fastest Speed 50 | 50 160 160 160 160 160 250 115 Average Speed 178 | 148 160 160 160 160 239 276 222 Slowest Speed 410 | 160 160 160 160 160 410 330 250 Overloaded Moves . | . . . . . . . . Propulsion Burnouts . | . . . . . . . . Robots Hopped . | . . . . . . . . Potential Cave-ins 1 | . . . . . 1 . . Cave-ins Triggered . | . . . . . . . . Exploration Rate (%) 32 | 3 21 74 91 30 21 4 12 Regions Visited 7 Branch Regions 3 Pre-discovered Areas . | . . . . . . . . Known Exits Taken 2 | . 1 . . . . 1 . Unknown Exits Taken 5 | 1 . 1 1 1 1 . . Scrap Searched 1 | . . 1 . . . . . Spaces Dug 2 | . . . . . 2 . . Terrain Destroyed 70 | . . . . . 44 . 26 Melee . | . . . . . . . . Projectile 9 | . . . . . 9 . . AOE 61 | . . . . . 35 . 26 Terrain Rammed . | . . . . . . . . Walls Destroyed . | . . . . . . . . Machines Disabled . | . . . . . . . . Actions | -11 -10 -10 -10 -9 -8 -7 -7 --------- Run | Yrd Mat Min Exi Min Mat Fac Gar Total 1981 | 103 110 602 438 113 254 124 237 Wait 202 | 14 . 43 . 40 35 2 68 Move 1555 | 67 101 532 437 73 162 110 73 Hop . | . . . . . . . . Pick Up 19 | 1 5 . 1 . 9 1 2 Fast Attach 19 | 7 . . . . 7 4 1 Attach 11 | . . . . . 4 2 5 Detach . | . . . . . . . . Swap 4 | . 2 . . . 2 . . Drop 7 | . 2 . . . 4 1 . Fire 135 | 14 . 27 . . 31 4 59 Melee . | . . . . . . . . Ram . | . . . . . . . . Kick . | . . . . . . . . Crush . | . . . . . . . . Escape Stasis . | . . . . . . . . Rewire 29 | . . . . . . . 29 Trap . | . . . . . . . . Miscellaneous . | . . . . . . . . Route ------- -11/Scrapyard -10/Materials (discovered 2 exits: *Min x2) -10/Mines (discovered 2 exits: [*Mat] / *Exi) -10/Exiles -9/Mines -8/Materials -7/Factory -7/Garrison History --------- Turn | Location | Event 4 | -11/Scrapyard | Discovered new exit (range 15) 168 | -11/Scrapyard | Entered Materials 169 | -10/Materials | Met a group of wandering Federalists 293 | -10/Materials | Identified exit to Mines 316 | -10/Materials | Build established: Mutant 339 | -10/Materials | Entered Mines 565 | -10/Mines | Learned Materials stockpile data 595 | -10/Mines | Learned Materials trap positions 892 | -10/Mines | Discovered new exit (range 12) 1089 | -10/Mines | Found a hidden stash of uninstalled traps 1308 | -10/Mines | Deemed a non-threat by the Exiles lab entrance 1308 | -10/Mines | Discovered new exit (range 5) 1315 | -10/Mines | Entered Exiles 1315 | -10/Exiles | Found Exiles lab abandoned 1995 | -10/Exiles | Discovered new exit (range 14) 2016 | -10/Exiles | Entered Mines 2148 | -9/Mines | Discovered new exit (range 11) 2165 | -9/Mines | Learned Materials garrison access intel 2173 | -9/Mines | Entered Materials 2173 | -8/Materials | Evolved 4 slots: Utility x2, Weapon x2 2174 | -8/Materials | Loaded intel: 18 trap records 2176 | -8/Materials | Loaded intel: 1 garrison access location 2372 | -8/Materials | System corruption reached 10% 2402 | -8/Materials | Lost 3 parts (1p2u) 2658 | -8/Materials | Discovered new exit (range 15) 2694 | -8/Materials | Build established: Tank 2698 | -8/Materials | Entered Factory 2698 | -7/Factory | Evolved 2 slots: Weapon x2 3028 | -7/Factory | Identified exit to Garrison 3028 | -7/Factory | Entered Garrison 3138 | -7/Garrison | Build established: Executioner 3278 | -7/Garrison | Triggered checkpoint 3317 | -7/Garrison | Garrison Relay disabled 3331 | -7/Garrison | Core integrity fell below 50% 3369 | -7/Garrison | Lost 13 parts (1p2n3u7w) 3379 | -7/Garrison | Core integrity fell below 20% 3389 | -7/Garrison | Destroyed by Y-54 Guardian with Flak Gun Last Messages --------------- 03344_ 48-ROU(g) rewired. 03346_ Attempting to rewire 5U-RI0(g). 03352_ 48-ROU(g) destroyed. 03353_ Attempting to rewire 5U-RI0(g). 03366_ 5U-RI0(g) rewired. 03366_ G-47 Trooper suffers critical hit (Burn). 03368_ Attempting to rewire TD-1A2(g). 03370_ G-47 Trooper destroyed. 03370_ Attempting to rewire TD-1A2(g). 03372_ Y-54 Guardian destroyed. 03372_ 5U-RI0(g) destroyed. 03373_ Acquired 13 matter. 03373_ Attempting to rewire TD-1A2(g). 03375_ Arm. Huge Wheel destroyed. 03376_ Lgt. Nuclear Core destroyed. 03377_ Acquired Particle Gun. 03381_ Acquired 43 matter. 03386_ Particle Gun destroyed. 03389_ Arm. Huge Wheel destroyed. Map ----- +----------------------------------------------------+ | ???????????????????# #??# #????????? | | ???????????????????+ #??# #????????? | | ???????????????????# #??# #????????? | | ???????????????????# #??###########% !%#????????? | | ???????????????????# ###??????????#######????????? | | ???????????????????# %### #?????????????????????? | | ???????????????????# =+ #?????????????????????? | | ???????????????????#*%%#?????????????????????????? | | ???????????????????# ###?????????????????????????? | | ???????????????????# #???????????????????????????? | | ???????????????????# ####????????????????????????? | | ???????????????????# ##???????????????????????? | | ?????????????????### # #####???????????????????? | | ?????????????????# # #! ##??????????????????? | | ?????????????????# # # #??????????????????? | | ?????????????????# #??????????????????? | | ?????????????????# # #??????????????????? | | ?????????????????# # #! ##??????????????????? | | ?????????????????### ! #??##???????????????????? | | ???????????????????####! #???????????????????????? | | ?????????????????????##!##???????????????????????? | | ?????????????????????# #???????????????????????? | | ?????????????????????## %###?????????????????????? | | ?????????????????????# ! #?????????????????????? | | ?????????????????????# YY#?????????????????????? | | ?????????????????????# @g#?????????????????????? | | ?????????????????????#######?????????????????????? | | ?????????????????????????????????????????????????? | | ?????????????????????????????????????????????????? | | ?????????????????????????????????????????????????? | | ?????????????????????????????????????????????????? | | ?????????????????????????????????????????????????? | | ?????????????????????????????????????????????????? | | ?????????????????????????????????????????????????? | | | | | | | | | | | | | | | | | | | | | | | | | | | | | | | | | +----------------------------------------------------+ Best States ------------- Heat Dissipation 45 Energy Generation 14 Energy Capacity 465 Matter Stores 300 Matter Capacity 300 Sight Range 16 Terrain Scan Density 10 Armor Coverage 600 Weapon Cycling 30 Evasion (%) 40 Recoil Reduction 2 Item Schematics ----------------- None Robot Schematics ------------------ None Fabricated ------------ Nothing Repaired ---------- Nothing Studied --------- None Alien Tech Used ----------------- None Achievements -------------- None Challenges ------------ None Game ------ Seed WarpAluminumThermoblaster Manual? 0 Play Time 00:18:27 Cumulative 317.6 hours Start 2026.09.17 @ 16:12:51 End 2026.09.17 @ 16:28:14 Sessions 1 Manual Loads 0 Difficulty Rogue Special Mode None Game No. 391 Rogue 391 Adventurer 0 Explorer 0 Win Type - Total 10 Types 7/0/1/1/0/0/0/1/0/0 Lore% 82 Gallery% 70 Achievement% 59 Wizard Run 0 Options --------- Layout 2 ASCII 0 Keyboard 0 Movement Mouse Keybinds 0 Fullscreen 1 Font 24/Smallcaps Map View 50x44 Zoom Use 0% Tactical HUD 1 Map Filters NONE Filters NONE Steam 1 RUN: 81e9d591-3984-4031-b654-550121566bcc